fUST/lending_fUST_20250114
["ID","MTS","AMOUNT","RATE_DAILY","PERIOD"]
[348893142,1736861437379,-500.0,0.00021917,3]
[348893143,1736861437389,-500.0,0.00021917,3]
[348893144,1736861437398,-308.41870133,0.00021917,3]
[348893145,1736861437425,-191.58129867,0.00021917,3]
[348893146,1736861437435,-500.0,0.00021917,3]
[348893147,1736861437445,-500.0,0.00021917,3]
[348893148,1736861437455,-500.0,0.00021917,3]
[348893149,1736861437465,-535.87397067,0.00021917,3]
[348893150,1736861437475,-993.77,0.00021917,3]
[348893151,1736861437486,-500.0,0.00021917,3]
[348893152,1736861437496,-500.0,0.00021917,3]
[348893153,1736861437506,-500.0,0.00021917,3]
[348893154,1736861437517,-500.0,0.00021917,3]
[348893155,1736861437529,-214.02568863,0.00021917,3]
[348893164,1736861438852,-3.14574391,0.00021917,3]
[348893165,1736861438863,-467.07607752,0.00021917,3]
[348893166,1736861438872,-283.7290102,0.00021917,3]
[348893167,1736861439023,-216.2709898,0.00021917,3]
[348893168,1736861439032,-500.0,0.00021917,3]
[348893169,1736861439042,-500.0,0.00021917,3]
[348893170,1736861439052,-500.0,0.00021917,3]
[348893171,1736861439062,-500.0,0.00021917,3]
[348893172,1736861439077,-500.0,0.00021917,3]
[348893173,1736861439086,-500.0,0.00021917,3]
[348893175,1736861439096,-500.0,0.00021917,3]
[348893177,1736861439105,-500.0,0.00021917,3]
[348893179,1736861439115,-500.0,0.00021917,3]
[348893181,1736861439124,-500.0,0.00021917,3]
[348893183,1736861439134,-500.0,0.00021917,3]
[348893185,1736861439143,-500.0,0.00021917,3]
[348893187,1736861439153,-500.0,0.00021917,3]
[348893189,1736861439163,-500.0,0.00021917,3]
[348893190,1736861439173,-675.0,0.00021917,3]
[348893191,1736861439183,-500.0,0.00021917,3]
[348893192,1736861439194,-500.0,0.00021917,3]
[348893193,1736861439204,-500.0,0.00021917,3]
[348893194,1736861439214,-500.0,0.00021917,3]
[348893195,1736861439228,-500.0,0.00021917,3]
[348893196,1736861439238,-500.0,0.00021917,3]
[348893197,1736861439248,-500.0,0.00021917,3]
[348893198,1736861439258,-500.0,0.00021917,3]
[348893199,1736861439268,-500.83313617,0.00021917,3]
[348893200,1736861439278,-334.1061227,0.00021917,3]
[348893201,1736861439288,-500.0,0.00021917,3]
[348893202,1736861439298,-729.53,0.00021917,3]
[348893203,1736861439308,-500.0,0.00021917,3]
[348893204,1736861439322,-500.0,0.00021917,3]
[348893205,1736861439335,-582.14,0.00021917,3]
[348893206,1736861439345,-500.0,0.00021917,3]
[348893207,1736861439354,-636.07,0.00021917,3]
[348893208,1736861439365,-500.0,0.00021917,3]
[348893209,1736861439379,-500.0,0.00021917,3]
[348893210,1736861439389,-838.4,0.00021917,3]
[348893211,1736861439399,-500.0,0.00021917,3]
[348893212,1736861439409,-500.0,0.00021917,3]
[348893213,1736861439419,-655.06,0.00021917,3]
[348893214,1736861439429,-500.0,0.00021917,3]
[348893215,1736861439439,-500.0,0.00021917,3]
[348893216,1736861439450,-500.0,0.00021917,3]
[348893217,1736861439459,-500.0,0.00021917,3]
[348893218,1736861439468,-500.0,0.00021917,3]
[348893219,1736861439478,-1020.43,0.00021917,3]
[348893220,1736861439487,-500.0,0.00021917,3]
[348893221,1736861439497,-849.21,0.00021917,3]
[348893222,1736861439507,-500.0,0.00021917,3]
[348893223,1736861439517,-568.42594117,0.00021917,3]
[348893224,1736861439527,-500.0,0.00021917,3]
[348893225,1736861439538,-500.0,0.00021917,3]
[348893226,1736861439547,-500.0,0.00021917,3]
[348893227,1736861439557,-725.57,0.00021917,3]
[348893228,1736861439568,-566.65827331,0.00021917,3]
[348893246,1736861440864,-66.75172669,0.00021917,3]
[348893247,1736861440875,-772.23072585,0.00021917,3]
[348893248,1736861440888,-465.06927415,0.00021917,3]
[348893249,1736861440898,-500.0,0.00021917,3]
[348893250,1736861440908,-500.0,0.00021917,3]
[348893251,1736861440920,-500.0,0.00021917,3]
[348893252,1736861440930,-500.0,0.00021917,3]
[348893253,1736861440939,-914.84,0.00021917,3]
[348893254,1736861440949,-500.0,0.00021917,3]
[348893255,1736861440959,-1167.84,0.00021917,3]
[348893256,1736861440968,-500.0,0.00021917,3]
[348893257,1736861440978,-500.0,0.00021917,3]
[348893258,1736861440987,-870.79,0.00021917,3]
[348893259,1736861440997,-500.0,0.00021917,3]
[348893260,1736861441006,-804.97,0.00021917,3]
[348893261,1736861441016,-500.0,0.00021917,3]
[348893262,1736861441026,-500.0,0.00021917,3]
[348893263,1736861441035,-354.49072585,0.00021917,3]
[348893264,1736861441048,-774.58927415,0.00021917,3]
[348893265,1736861441058,-500.0,0.00021917,3]
[348893266,1736861441070,-582.95,0.00021917,3]
[348893267,1736861441079,-500.0,0.00021917,3]
[348893268,1736861441089,-500.0,0.00021917,3]
[348893269,1736861441099,-500.0,0.00021917,3]
[348893270,1736861441108,-500.0,0.00021917,3]
[348893271,1736861441118,-853.78,0.00021917,3]
[348893272,1736861441128,-500.0,0.00021917,3]
[348893273,1736861441138,-708.77,0.00021917,3]
[348893274,1736861441147,-500.0,0.00021917,3]
[348893275,1736861441157,-662.36,0.00021917,3]
[348893276,1736861441167,-622.66956473,0.00021917,3]
[348893277,1736861441176,-500.0,0.00021917,3]
[348893278,1736861441186,-500.0,0.00021917,3]
[348893279,1736861441196,-562.10746282,0.00021917,3]
[348893280,1736861441206,-334.7736983,0.00021917,3]
[348893284,1736861443866,-165.2263017,0.00021917,3]
[348893285,1736861443877,-922.53,0.00021917,3]
[348893286,1736861443887,-500.0,0.00021917,3]
[348893287,1736861443896,-500.0,0.00021917,3]
[348893288,1736861443906,-500.0,0.00021917,3]
[348893289,1736861443916,-500.0,0.00021917,3]
[348893290,1736861443927,-500.0,0.00021917,3]
[348893291,1736861443937,-2773.2,0.00021917,3]
[348893292,1736861443946,-500.0,0.00021917,3]
[348893293,1736861443956,-500.0,0.00021917,3]
[348893294,1736861443965,-139.11131401,0.00021917,3]
[348893338,1736861446905,-360.88868599,0.00021917,3]
[348893339,1736861446916,-500.0,0.00021917,3]
[348893340,1736861446926,-500.0,0.00021917,3]
[348893341,1736861446936,-500.0,0.00021917,3]
[348893342,1736861446946,-500.0,0.00021917,3]
[348893343,1736861446956,-500.0,0.00021917,3]
[348893344,1736861446966,-500.0,0.00021917,3]
[348893345,1736861446976,-500.0,0.00021917,3]
[348893346,1736861446986,-865.16,0.00021917,3]
[348893347,1736861446995,-1504.05,0.00021917,3]
[348893348,1736861447005,-810.68,0.00021917,3]
[348893349,1736861447014,-27.74607262,0.00021917,3]
[348893350,1736861447044,-585.66392738,0.00021917,3]
[348893351,1736861447053,-403.067421,0.00021917,3]
[348893352,1736861447063,-500.0,0.00021917,3]
[348893353,1736861447074,-1198.47,0.00021917,3]
[348893354,1736861447084,-500.0,0.00021917,3]
[348893355,1736861447093,-500.0,0.00021917,3]
[348893356,1736861447102,-500.0,0.00021917,3]
[348893357,1736861447112,-864.95,0.00021917,3]
[348893358,1736861447121,-500.0,0.00021917,3]
[348893359,1736861447132,-500.0,0.00021917,3]
[348893360,1736861447141,-709.21,0.00021917,3]
[348893361,1736861447150,-290.13452603,0.00021917,3]
[348893417,1736861462142,223.14171375,0.00022,6]
[348893428,1736861944558,500.0,0.00020911,7]
[348893430,1736862429737,160.810208,0.00013973,2]
[348893431,1736862433168,-169.75388042,0.00019817,2]
[348893482,1736862632051,-513.14219893,0.000189,2]
[348893484,1736862632060,-595.8,0.0002,4]
[348893486,1736862632069,-1314.80780107,0.00020634,2]
[348893487,1736862632194,-4044.30769886,0.00020634,2]
[348893488,1736862632204,-1238.23857254,0.00020686,2]
[348893529,1736862637908,-1671.58971686,0.00020686,2]
[348893531,1736862637919,-169.378877,0.00020848,2]
[348893533,1736862637928,-158.98327386,0.0002086,2]
[348893534,1736862637938,-300.0,0.00020899,2]
[348893536,1736862637948,-2376.0,0.00020899,2]
[348893558,1736862638140,-472.929,0.000209,2]
[348893560,1736862638150,-6572.17584098,0.00021425,2]
[348893562,1736862638160,-271.1189986,0.00021697,2]
[348893564,1736862638169,-502.74838153,0.000217,2]
[348893566,1736862638179,-160.0,0.00021725,3]
[348893568,1736862638188,-153.9478634,0.000218,2]
[348893570,1736862638197,-153.0,0.000218,2]
[348893572,1736862638206,-577.6759776,0.000218,2]
[348893574,1736862638215,-158.0704113,0.000218,2]
[348893576,1736862638225,-306.0,0.000218,2]
[348893578,1736862638234,-153.9478634,0.000218,2]
[348893580,1736862638243,-151.67,0.000218,2]
[348893582,1736862638252,-153.9478634,0.000218,2]
[348893584,1736862638261,-166.31158948,0.00021817,2]
[348893586,1736862638271,-712.90454319,0.00021817,2]
[348893588,1736862638280,-158.2,0.0002187,2]
[348893590,1736862638290,-167.503,0.000219,2]
[348893592,1736862638300,-990.43776879,0.000219,2]
[348893594,1736862638309,-59890.35659013,0.00021917,5]
[348893596,1736862638319,-660.03507092,0.00021917,5]
[348893599,1736862638337,-2033.397,0.00021917,5]
[348893601,1736862638348,-681.97308835,0.00021917,5]
[348893605,1736862638372,-385.861,0.00021917,5]
[348893674,1736862640151,-7047.33984479,0.00021917,5]
[348893675,1736862640160,-500.0,0.00021917,3]
[348893677,1736862640169,-609.57,0.00021917,3]
[348893679,1736862640179,-500.0,0.00021917,3]
[348893681,1736862640188,-500.0,0.00021917,3]
[348893683,1736862640197,-504.37626092,0.00021917,3]
[348893685,1736862640208,-504.19524353,0.00021917,3]
[348893687,1736862640217,-500.0,0.00021917,3]
[348893689,1736862640227,-500.0,0.00021917,3]
[348893691,1736862640237,-503.64474337,0.00021917,3]
[348893693,1736862640246,-500.0,0.00021917,3]
[348893695,1736862640256,-512.74805823,0.00021917,3]
[348893698,1736862640267,-500.0,0.00021917,3]
[348893700,1736862640276,-500.0,0.00021917,3]
[348893703,1736862640286,-518.41220834,0.00021917,3]
[348893705,1736862640295,-500.0,0.00021917,3]
[348893707,1736862640304,-558.66,0.00021917,3]
[348893709,1736862640314,-223.81653082,0.00021917,3]
[348893711,1736862640323,-500.0,0.00021917,3]
[348893713,1736862640332,-500.0,0.00021917,3]
[348893715,1736862640342,-599.23,0.00021917,3]
[348893717,1736862640352,-500.0,0.00021917,3]
[348893719,1736862640362,-151.0,0.00021917,2]
[348893721,1736862640371,-151.0,0.00021917,2]
[348893723,1736862640381,-151.0,0.00021917,2]
[348893725,1736862640396,-151.0,0.00021917,2]
[348893727,1736862640406,-151.0,0.00021917,2]
[348893729,1736862640415,-151.0,0.00021917,2]
[348893731,1736862640425,-293.067704,0.00021917,2]
[348893733,1736862640434,-554.13940602,0.00021917,3]
[348893735,1736862640447,-8.88490235,0.00021917,3]
[348893737,1736862640456,-500.0,0.00021917,3]
[348893740,1736862640466,-500.0,0.00021917,3]
[348893742,1736862640476,-500.0,0.00021917,3]
[348893744,1736862640486,-500.0,0.00021917,3]
[348893746,1736862640495,-500.0,0.00021917,3]
[348893748,1736862640504,-557.88,0.00021917,3]
[348893749,1736862640514,-500.0,0.00021917,3]
[348893751,1736862640523,-500.0,0.00021917,3]
[348893753,1736862640533,-500.0,0.00021917,3]
[348893755,1736862640543,-500.0,0.00021917,3]
[348893758,1736862640552,-500.0,0.00021917,3]
[348893760,1736862640562,-504.53448255,0.00021917,3]
[348893762,1736862640572,-500.0,0.00021917,3]
[348893764,1736862640581,-500.0,0.00021917,3]
[348893766,1736862640591,-500.0,0.00021917,3]
[348893768,1736862640600,-803.47,0.00021917,3]
[348893770,1736862640610,-500.0,0.00021917,3]
[348893772,1736862640620,-462.96988047,0.00021917,3]
[348893774,1736862640632,-23.66380884,0.00021917,3]
[348893776,1736862640644,-977.92,0.00021917,3]
[348893778,1736862640653,-500.0,0.00021917,3]
[348893780,1736862640662,-500.0,0.00021917,3]
[348893782,1736862640672,-813.83,0.00021917,3]
[348893784,1736862640681,-500.0,0.00021917,3]
[348893786,1736862640691,-500.0,0.00021917,3]
[348893788,1736862640700,-500.0,0.00021917,3]
[348893790,1736862640710,-500.0,0.00021917,3]
[348893792,1736862640721,-607.02,0.00021917,3]
[348893794,1736862640733,-513.7883702,0.00021917,3]
[348893796,1736862640743,-1185.74,0.00021917,3]
[348893798,1736862640752,-500.0,0.00021917,3]
[348893800,1736862640763,-579.65819933,0.00021917,3]
[348893802,1736862640772,-500.0,0.00021917,3]
[348893804,1736862640782,-876.72,0.00021917,3]
[348893806,1736862640791,-137.65962163,0.00021917,3]
[348894038,1736862643504,-557.68037837,0.00021917,3]
[348894040,1736862643514,-3.32494668,0.00021917,3]
[348894048,1736862643710,-496.67505332,0.00021917,3]
[348894049,1736862643723,-151.0,0.00021917,2]
[348894051,1736862643732,-151.0,0.00021917,2]
[348894053,1736862643741,-284.40935238,0.00021917,2]
[348894054,1736862643751,-834.51,0.00021917,3]
[348894055,1736862643762,-1119.18,0.00021917,3]
[348894056,1736862643772,-771.43,0.00021917,3]
[348894057,1736862643782,-500.0,0.00021917,3]
[348894058,1736862643791,-500.0,0.00021917,3]
[348894059,1736862643803,-500.0,0.00021917,3]
[348894060,1736862643815,-500.0,0.00021917,3]
[348894061,1736862643826,-501.11,0.00021917,3]
[348894062,1736862643835,-629.64,0.00021917,3]
[348894063,1736862643845,-500.0,0.00021917,3]
[348894064,1736862643854,-500.0,0.00021917,3]
[348894065,1736862643863,-713.47,0.00021917,3]
[348894066,1736862643872,-617.17,0.00021917,3]
[348894067,1736862643881,-667.67,0.00021917,3]
[348894068,1736862643891,-500.0,0.00021917,3]
[348894069,1736862643900,-500.0,0.00021917,3]
[348894070,1736862643909,-151.0,0.00021917,2]
[348894071,1736862643918,-151.0,0.00021917,2]
[348894072,1736862643928,-151.0,0.00021917,2]
[348894073,1736862643937,-151.0,0.00021917,2]
[348894074,1736862643946,-30.8293443,0.00021917,2]
[348894075,1736862643958,-120.1706557,0.00021917,2]
[348894076,1736862643967,-151.0,0.00021917,2]
[348894077,1736862643976,-29.75741808,0.00021917,2]
[348894104,1736862645993,-2597.12877028,0.00021817,2]
[348894105,1736862646003,-121.24258192,0.00021917,2]
[348894106,1736862646014,-500.0,0.00021917,3]
[348894107,1736862646024,-500.0,0.00021917,3]
[348894108,1736862646034,-500.0,0.00021917,3]
[348894109,1736862646047,-500.0,0.00021917,3]
[348894110,1736862646058,-500.0,0.00021917,3]
[348894111,1736862646068,-884.09,0.00021917,3]
[348894112,1736862646078,-500.0,0.00021917,3]
[348894113,1736862646087,-500.0,0.00021917,3]
[348894116,1736862646240,-500.0,0.00021917,3]
[348894117,1736862646251,-500.0,0.00021917,3]
[348894118,1736862646260,-500.0,0.00021917,3]
[348894119,1736862646270,-500.0,0.00021917,3]
[348894120,1736862646280,-500.0,0.00021917,3]
[348894121,1736862646290,-2657.65,0.00021917,3]
[348894122,1736862646300,-500.0,0.00021917,3]
[348894123,1736862646309,-500.0,0.00021917,3]
[348894124,1736862646318,-500.0,0.00021917,3]
[348894125,1736862646328,-250.12079617,0.00021917,3]
[348894126,1736862646337,-500.0,0.00021917,3]
[348894127,1736862646346,-500.0,0.00021917,3]
[348894128,1736862646355,-500.0,0.00021917,3]
[348894129,1736862646365,-500.0,0.00021917,3]
[348894130,1736862646375,-863.27,0.00021917,3]
[348894131,1736862646383,-500.0,0.00021917,3]
[348894132,1736862646392,-500.0,0.00021917,3]
[348894133,1736862646401,-500.0,0.00021917,3]
[348894134,1736862646411,-912.68,0.00021917,3]
[348894135,1736862646420,-1441.38,0.00021917,3]
[348894136,1736862646429,-697.55704809,0.00021917,3]
[348894137,1736862646461,-79.34295191,0.00021917,3]
[348894138,1736862646470,-500.0,0.00021917,3]
[348894139,1736862646480,-587.85,0.00021917,3]
[348894140,1736862646489,-500.0,0.00021917,3]
[348894141,1736862646500,-1148.53,0.00021917,3]
[348894142,1736862646510,-500.0,0.00021917,3]
[348894143,1736862646519,-500.0,0.00021917,3]
[348894144,1736862646529,-500.0,0.00021917,3]
[348894145,1736862646541,-635.04,0.00021917,3]
[348894146,1736862646550,-500.0,0.00021917,3]
[348894147,1736862646559,-679.66,0.00021917,3]
[348894148,1736862646569,-1886.29,0.00021917,3]
[348894149,1736862646579,-615.92647264,0.00021917,3]
[348894150,1736862646588,-500.0,0.00021917,3]
[348894151,1736862646598,-500.0,0.00021917,3]
[348894152,1736862646607,-500.0,0.00021917,3]
[348894153,1736862646617,-438.17324976,0.00021917,3]
[348894154,1736862660360,5000.0,0.00022,6]
[348894155,1736862669210,1646.65078723,0.00022,6]
[348894157,1736862696053,4359.30122646,0.00021,17]
[348894163,1736863114291,274.0,0.00024,30]
[348894166,1736863587678,165.495375,0.00013973,2]
[348894177,1736863653131,-1713.29989147,0.00018846,14]
[348894178,1736863654119,-161.70457524,0.00018846,14]
[348894189,1736863762119,-300.0,0.00019034,2]
[348894190,1736863762142,-164.468591,0.00019178,2]
[348894191,1736863762162,-300.0,0.00019226,2]
[348894192,1736863762183,-300.0,0.00019422,2]
[348894193,1736863762202,-500.0,0.00019423,2]
[348894194,1736863762222,-500.0,0.00019423,2]
[348894195,1736863762243,-500.0,0.00019423,2]
[348894196,1736863762262,-500.0,0.00019423,2]
[348894197,1736863762286,-404.08593878,0.00019423,2]
[348894198,1736863762306,-84.45080257,0.00019608,2]
[348894250,1736863832411,-158.2,0.00018815,2]
[348894252,1736863832421,-158.2,0.00019005,2]
[348894254,1736863832432,-158.2,0.00019197,2]
[348894255,1736863832442,-73.74919743,0.00019608,2]
[348894257,1736863832452,-158.2,0.00019699,3]
[348894259,1736863832462,-600.0,0.0002,2]
[348894261,1736863832471,-2778.0,0.000202,2]
[348894262,1736863832481,-158.2,0.00020202,3]
[348894263,1736863832490,-158.2,0.0002027,2]
[348894264,1736863832500,-474.974,0.000209,2]
[348894265,1736863832510,-623.7914753,0.000209,2]
[348894266,1736863832519,-957.42317641,0.000209,2]
[348894267,1736863832529,-178.398,0.00020999,2]
[348894268,1736863832542,-228.83495416,0.00020999,2]
[348894269,1736863832553,-24133.16396404,0.00021,17]
[348894270,1736863832564,-19666.51605858,0.00021,17]
[348894271,1736863832574,-500.0,0.00021,5]
[348894272,1736863832584,-500.0,0.00021,5]
[348894273,1736863832593,-500.0,0.00021,5]
[348894274,1736863832603,-500.0,0.00021,5]
[348894275,1736863832613,-957.42317623,0.00021003,2]
[348894276,1736863832623,-957.42317623,0.00021107,2]
[348894277,1736863832632,-957.42317623,0.0002121,2]
[348894278,1736863832643,-623.79147526,0.00021287,2]
[348894279,1736863832652,-957.42317623,0.00021314,2]
[348894280,1736863832662,-957.42317623,0.00021417,2]
[348894281,1736863832671,-957.42317623,0.00021521,2]
[348894282,1736863832681,-957.42317623,0.00021624,2]
[348894283,1736863832690,-623.79147526,0.00021675,2]
[348894284,1736863832700,-184.7591227,0.00021697,2]
[348894285,1736863832709,-957.42317623,0.00021728,2]
[348894286,1736863832718,-395.0,0.00021769,2]
[348894287,1736863832728,-20027.00844983,0.00021783,2]
[348894288,1736863832737,-2778.0,0.00021816,4]
[348894289,1736863832746,-420.05837343,0.00021817,2]
[348894290,1736863832756,-957.42317623,0.00021831,2]
[348894291,1736863832765,-500.0,0.00021889,2]
[348894292,1736863832776,-500.0,0.00021889,2]
[348894293,1736863832787,-494.39511666,0.00021889,2]
[348894294,1736863832797,-465.36414357,0.00021889,2]
[348894295,1736863832807,-239.35045475,0.00021889,2]
[348894296,1736863832816,-500.0,0.00021889,2]
[348894297,1736863832826,-402.38966354,0.00021889,2]
[348894298,1736863832836,-500.0,0.00021889,2]
[348894299,1736863832845,-175.17920401,0.00021889,2]
[348894300,1736863832855,-500.0,0.00021889,2]
[348894301,1736863832865,-500.0,0.00021889,2]
[348894302,1736863832875,-500.0,0.00021889,2]
[348894303,1736863832884,-500.0,0.00021889,2]
[348894304,1736863832894,-500.0,0.00021889,2]
[348894305,1736863832904,-20000.0,0.0002189,2]
[348894306,1736863832913,-792.65271646,0.000219,2]
[348894307,1736863832921,-151.0,0.00021916,2]
[348894308,1736863832931,-190.7016009,0.00021916,2]
[348894309,1736863832940,-160.99965121,0.00021916,2]
[348894310,1736863832950,-29945.17829506,0.00021917,5]
[348894311,1736863832959,-5745.2895462,0.00021917,5]
[348894312,1736863832968,-154.231526,0.00021917,2]
[348894313,1736863832977,-151.0,0.00021917,2]
[348894314,1736863832987,-151.0,0.00021917,2]
[348894315,1736863832997,-231.719008,0.00021917,2]
[348894316,1736863833006,-618.957452,0.00021917,2]
[348894317,1736863833016,-618.957452,0.00021917,2]
[348894318,1736863833025,-500.0,0.00021917,3]
[348894319,1736863833036,-500.0,0.00021917,3]
[348894320,1736863833045,-500.0,0.00021917,3]
[348894321,1736863833055,-500.0,0.00021917,3]
[348894322,1736863833065,-500.34931863,0.00021917,3]
[348894323,1736863833075,-500.0,0.00021917,3]
[348894324,1736863833084,-500.0,0.00021917,3]
[348894325,1736863833094,-500.0,0.00021917,3]
[348894326,1736863833106,-152.84701171,0.00021917,3]
[348894327,1736863833116,-507.07555736,0.00021917,3]
[348894328,1736863833126,-400.0,0.00021917,3]
[348894329,1736863833135,-503.84883633,0.00021917,3]
[348894330,1736863833144,-500.0,0.00021917,3]
[348894331,1736863833154,-501.55256837,0.00021917,3]
[348894332,1736863833163,-500.0,0.00021917,3]
[348894333,1736863833173,-500.0,0.00021917,3]
[348894334,1736863833182,-500.0,0.00021917,3]
[348894335,1736863833192,-500.0,0.00021917,3]
[348894336,1736863833201,-500.0,0.00021917,3]
[348894337,1736863833210,-300.83155344,0.00021917,3]
[348894338,1736863833220,-500.76587331,0.00021917,3]
[348894339,1736863833230,-500.0,0.00021917,3]
[348894340,1736863833239,-500.0,0.00021917,3]
[348894341,1736863833247,-500.0,0.00021917,3]
[348894342,1736863833257,-500.0,0.00021917,3]
[348894343,1736863833272,-500.0,0.00021917,3]
[348894344,1736863833294,-500.0,0.00021917,3]
[348894345,1736863833316,-500.0,0.00021917,3]
[348894346,1736863833339,-500.0,0.00021917,3]
[348894347,1736863833359,-500.0,0.00021917,3]
[348894348,1736863833380,-500.0,0.00021917,3]
[348894349,1736863833401,-500.0,0.00021917,3]
[348894350,1736863833424,-500.0,0.00021917,3]
[348894351,1736863833445,-1002.1088638,0.00021917,3]
[348894352,1736863833466,-500.0,0.00021917,3]
[348894353,1736863833476,-500.0,0.00021917,3]
[348894354,1736863833486,-500.0,0.00021917,3]
[348894355,1736863833495,-576.77403929,0.00021917,3]
[348894356,1736863833505,-500.0,0.00021917,3]
[348894357,1736863833515,-501.1197293,0.00021917,3]
[348894358,1736863833525,-501.05108206,0.00021917,3]
[348894359,1736863833536,-500.0,0.00021917,3]
[348894360,1736863833546,-151.0,0.00021917,2]
[348894361,1736863833555,-500.0,0.00021917,3]
[348894362,1736863833565,-500.0,0.00021917,3]
[348894363,1736863833576,-151.0,0.00021917,2]
[348894364,1736863833586,-500.0,0.00021917,3]
[348894365,1736863833596,-500.0,0.00021917,3]
[348894366,1736863833614,-151.0,0.00021917,2]
[348894367,1736863833624,-500.0,0.00021917,3]
[348894368,1736863833633,-508.52602473,0.00021917,3]
[348894369,1736863833645,-500.0,0.00021917,3]
[348894370,1736863833656,-500.0,0.00021917,3]
[348894371,1736863833668,-500.58501597,0.00021917,3]
[348894372,1736863833681,-962.96,0.00021917,2]
[348894373,1736863833691,-500.0,0.00021917,3]
[348894374,1736863833700,-500.0,0.00021917,3]
[348894375,1736863833710,-500.0,0.00021917,3]
[348894376,1736863833720,-500.0,0.00021917,3]
[348894377,1736863833730,-500.0,0.00021917,3]
[348894378,1736863833740,-500.0,0.00021917,3]
[348894379,1736863833749,-500.0,0.00021917,3]
[348894380,1736863833758,-500.0,0.00021917,3]
[348894381,1736863833767,-500.0,0.00021917,3]
[348894382,1736863833777,-500.0,0.00021917,3]
[348894383,1736863833788,-500.0,0.00021917,3]
[348894384,1736863833798,-500.0,0.00021917,3]
[348894385,1736863833807,-151.0,0.00021917,2]
[348894386,1736863833816,-151.0,0.00021917,2]
[348894387,1736863833826,-151.0,0.00021917,2]
[348894388,1736863833835,-151.0,0.00021917,2]
[348894389,1736863833845,-500.0,0.00021917,3]
[348894390,1736863833854,-151.0,0.00021917,2]
[348894391,1736863833863,-151.0,0.00021917,2]
[348894392,1736863833873,-264.44047,0.00021917,2]
[348894393,1736863833883,-501.17967545,0.00021917,3]
[348894394,1736863833892,-500.0,0.00021917,3]
[348894395,1736863833902,-500.0,0.00021917,3]
[348894396,1736863833912,-500.0,0.00021917,3]
[348894397,1736863833921,-500.0,0.00021917,3]
[348894398,1736863833931,-10661.45,0.00021917,3]
[348894399,1736863833941,-151.0,0.00021917,2]
[348894400,1736863833951,-152.831469,0.00021917,2]
[348894401,1736863833960,-500.0,0.00021917,3]
[348894402,1736863833971,-502.71180506,0.00021917,3]
[348894403,1736863833980,-500.0,0.00021917,3]
[348894404,1736863833990,-500.0,0.00021917,3]
[348894405,1736863833999,-234.46264604,0.00021917,3]
[348894406,1736863834009,-500.0,0.00021917,3]
[348894407,1736863834019,-500.0,0.00021917,3]
[348894408,1736863834029,-500.0,0.00021917,3]
[348894409,1736863834039,-151.0,0.00021917,2]
[348894410,1736863834049,-500.0,0.00021917,3]
[348894411,1736863834059,-151.0,0.00021917,2]
[348894412,1736863834068,-500.0,0.00021917,3]
[348894413,1736863834078,-157.05954367,0.00021917,3]
[348894414,1736863834088,-500.0,0.00021917,3]
[348894415,1736863834242,-501.4155558,0.00021917,3]